bitfinex/quotes_SOLUSD_20240714
["timestamp","ask_amount","ask_price","bid_price","bid_amount"]
[1720968585157,24.18368719,144.87,144.79,12.66112606]
[1720968585351,12.1317224,144.84,144.79,12.66112606]
[1720968585544,1.38078719,144.83,144.79,12.66112606]
[1720968586234,12.66078719,144.83,144.79,1.38112606]
[1720968586431,12.66078719,144.83,144.8,1.38103067]
[1720968586651,12.66078719,144.83,144.79,1.38103067]
[1720968586859,12.66078719,144.83,144.8,1.38107597]
[1720968587159,12.66078719,144.83,144.79,1.38107597]
[1720968587359,12.66078719,144.83,144.8,1.3810762]
[1720968587656,12.66078719,144.83,144.79,1.3810762]
[1720968587833,12.66078719,144.83,144.8,1.38107644]
[1720968588037,12.66078719,144.83,144.79,1.38107288]
[1720968588239,12.66078719,144.83,144.79,1.3809775]
[1720968588450,11.28,144.81,144.76,20.0]
[1720968588656,11.28,144.81,144.77,1.38111119]
[1720968590040,11.28,144.8,144.77,1.38111119]
[1720968590238,11.28,144.8,144.76,20.0]
[1720968590436,6.28,144.8,144.76,20.0]
[1720968591058,6.28,144.8,144.76,31.28]
[1720968593971,6.28,144.8,144.76,20.0]
[1720968596574,1.38078719,144.79,144.75,15.6192]
[1720968596768,1.38078719,144.79,144.75,26.8992]
[1720968597169,0.69084629,144.76,144.75,26.8992]
[1720968597349,0.69084629,144.76,144.75,46.8992]
[1720968600960,0.69084629,144.76,144.75,35.6192]
[1720968601271,0.69084629,144.76,144.75,46.8992]
[1720968602381,0.69084629,144.76,144.75,48.28046743]
[1720968602603,0.69084629,144.76,144.75,93.28046743]
[1720968604689,0.69084629,144.76,144.75,82.00046743]
[1720968604901,0.69084629,144.76,144.75,93.28046743]
[1720968605198,0.69084629,144.76,144.75,48.28046743]
[1720968607869,0.69084629,144.76,144.75,93.28046743]
[1720968611286,0.69084629,144.76,144.75,104.56046743]
[1720968611487,0.69084629,144.76,144.75,138.40046743]
[1720968611694,0.69084629,144.76,144.75,93.28046743]
[1720968612270,0.69084629,144.76,144.75,104.56046743]
[1720968614002,0.8517224,144.84,144.75,104.56046743]
[1720968614182,0.8517224,144.84,144.82,11.28]
[1720968614386,0.8517224,144.84,144.83,12.66050445]
[1720968614702,0.8517224,144.84,144.83,32.66050445]
[1720968615374,0.8517224,144.84,144.83,31.28]
[1720968615578,0.8517224,144.84,144.83,65.0]
[1720968615871,0.8517224,144.84,144.83,87.56]
[1720968616076,0.8517224,144.84,144.83,76.28]
[1720968616280,0.8517224,144.84,144.83,71.0738]
[1720968616489,0.2,144.89,144.83,71.0738]
[1720968616807,11.48,144.89,144.84,65.0]
[1720968617010,11.28,144.88,144.84,31.28]
[1720968617177,0.69041702,144.85,144.84,31.28]
[1720968617504,0.69041702,144.85,144.84,66.37696141]
[1720968617706,0.69041702,144.85,144.84,32.65696141]
[1720968618002,0.69041702,144.85,144.84,31.28]
[1720968618174,0.69041702,144.85,144.84,20.0]
[1720968618596,0.69041702,144.85,144.83,20.0]
[1720968618898,0.69041702,144.85,144.84,12.66055143]
[1720968619204,0.69041702,144.85,144.84,32.66055143]
[1720968619584,0.69041702,144.85,144.84,66.38055143]
[1720968619804,0.69041702,144.85,144.84,77.66055143]
[1720968620186,0.69041702,144.85,144.84,32.66055143]
[1720968621807,0.69041702,144.85,144.84,77.66055143]
[1720968622285,0.69041702,144.85,144.84,66.38055143]
[1720968622483,0.69041702,144.85,144.84,21.38055143]
[1720968622782,0.69041702,144.85,144.84,12.66055143]
[1720968622979,0.69041702,144.85,144.84,32.66055143]
[1720968623198,0.69041702,144.85,144.84,77.66055143]
[1720968623708,0.69041702,144.85,144.84,93.12245143]
[1720968623918,0.69041702,144.85,144.84,99.19625143]
[1720968624095,0.2,144.89,144.84,99.19625143]
[1720968624286,0.2,144.89,144.88,11.28]
[1720968624491,0.2,144.89,144.88,76.28]
[1720968625198,0.2,144.89,144.88,65.0]
[1720968625418,0.2,144.89,144.88,76.28]
[1720968627104,0.2,144.89,144.88,98.3986]
[1720968628215,2.23250959,144.98,144.88,98.3986]
[1720968628216,0.8517224,144.98,144.88,109.6786]
[1720968628423,0.8517224,144.98,144.95,11.28]
[1720968628624,0.8517224,144.98,144.94,11.28]
[1720968628917,12.1317224,144.98,144.95,1.37949278]
[1720968629220,0.8517224,144.98,144.95,1.37949278]
[1720968629450,0.8517224,144.98,144.96,16.0039]
[1720968629738,0.8517224,144.98,144.97,12.65921981]
[1720968629911,0.8517224,144.98,144.92,17.38335316]
[1720968630115,0.8517224,144.98,144.94,11.28]
[1720968630423,0.8517224,144.98,144.95,21.37916765]
[1720968630624,12.1317224,144.98,144.95,21.37916765]
[1720968630794,0.8517224,144.98,144.95,20.0]
[1720968631000,0.8517224,144.98,144.94,11.28]
[1720968631309,0.8517224,144.98,144.95,20.0]
[1720968631825,12.1317224,144.98,144.95,20.0]
[1720968632119,23.90918719,144.97,144.91,1.37949787]
[1720968632319,11.28,144.92,144.87,11.28]
[1720968632522,69.02918719,144.97,144.83,27.7677]
[1720968632705,11.28,144.92,144.87,11.28]
[1720968633413,1.38078719,144.95,144.87,11.28]
[1720968633614,22.5284,144.97,144.87,11.28]
[1720968633816,1.38078719,144.96,144.88,11.28]
[1720968634129,11.28,144.94,144.84,6.1047]
[1720968634427,1.38078719,144.96,144.85,20.0]
[1720968634827,1.38078719,144.96,144.86,45.0]
[1720968635026,1.38078719,144.96,144.87,20.0]
[1720968635227,1.38078719,144.96,144.88,45.0]
[1720968635526,1.38078719,144.96,144.89,20.0]
[1720968636624,1.38078719,144.96,144.84,28.5647]
[1720968636817,1.38078719,144.96,144.85,20.0]
[1720968637217,0.69036935,144.86,144.85,20.0]
[1720968638029,0.69036935,144.86,144.85,65.0]
[1720968645223,0.69036935,144.86,144.83,16.4877]
[1720968645526,0.69036935,144.86,144.8,6.1047]
[1720968646332,0.69036935,144.86,144.79,16.4877]
[1720968647625,0.69036935,144.86,144.8,20.0]
[1720968648740,0.69036935,144.86,144.76,405.2005]
[1720968650046,0.69036935,144.86,144.77,20.0]
[1720968650739,21.3371,144.85,144.77,20.0]
[1720968650943,1.38078719,144.84,144.75,20.0]
[1720968651244,21.3371,144.85,144.76,45.0]
[1720968651555,21.3371,144.85,144.77,20.0]
[1720968651870,21.3371,144.85,144.78,45.0]
[1720968652155,21.3371,144.85,144.79,20.0]
[1720968652529,21.3371,144.85,144.77,22.46]
[1720968652728,21.3371,144.85,144.78,65.0]
[1720968654151,0.69036935,144.86,144.78,65.0]
[1720968657348,22.71788719,144.89,144.78,65.0]
[1720968657349,0.69036935,144.79,144.78,65.0]
[1720968658462,0.69036935,144.79,144.78,91.8884]
[1720968660353,21.3371,144.89,144.78,121.38921205]
[1720968660538,11.24,144.91,144.87,11.24]
[1720968660740,1.38078719,144.92,144.86,11.24]
[1720968660954,11.24,144.9,144.86,11.24]
[1720968661152,21.3371,144.93,144.88,11.24]
[1720968661362,32.5771,144.93,144.88,11.24]
[1720968661560,11.24,144.92,144.87,11.24]
[1720968661779,21.3371,144.93,144.89,11.24]
[1720968662137,21.3371,144.93,144.9,1.37710071]
[1720968662663,21.3371,144.93,144.85,21.37710071]
[1720968662864,21.3371,144.93,144.86,46.3799468]
[1720968663166,23.56960959,144.98,144.87,42.45]
[1720968663460,23.56960959,144.98,144.88,1.37967007]
[1720968663680,23.56960959,144.98,144.88,46.37967007]
[1720968663838,23.56960959,144.98,144.89,20.0]
[1720968664140,22.1888224,144.98,144.9,45.0]
[1720968664340,22.1888224,144.98,144.91,20.0]
[1720968664659,0.8517224,144.98,144.91,20.0]
[1720968664862,0.8517224,144.98,144.88,42.45]
[1720968665164,0.8517224,144.98,144.89,46.37969619]
[1720968665165,1.38078719,144.97,144.89,46.37969619]
[1720968665361,0.8517224,144.98,144.9,20.0]
[1720968665558,0.8517224,144.98,144.9,21.37981596]
[1720968665946,1.38078719,144.97,144.9,21.37981596]
[1720968666339,0.8517224,144.98,144.9,21.37981596]
[1720968666539,15.9423,144.97,144.9,21.37981596]
[1720968666783,17.32308719,144.97,144.9,1.37981596]
[1720968667060,15.9423,144.97,144.86,21.37969568]
[1720968667258,15.9423,144.97,144.88,22.45]
[1720968667769,0.8517224,144.98,144.89,21.01170933]
[1720968668058,0.8517224,144.98,144.9,45.0]
[1720968668447,0.8517224,144.98,144.9,67.45]
[1720968668661,0.8517224,144.98,144.91,1.37947506]
[1720968669040,0.8517224,144.98,144.91,21.37947506]
[1720968669238,0.8517224,144.98,144.93,22.45]
[1720968669455,0.8517224,144.98,144.94,1.37918953]
[1720968669658,0.8517224,144.98,144.94,45.0]
[1720968670061,0.8517224,144.98,144.95,0.73277781]
[1720968670267,0.8517224,144.98,144.95,0.73256468]
[1720968670445,0.8517224,144.98,144.95,21.3791303]
[1720968670764,0.8517224,144.98,144.96,45.0]
[1720968671069,0.8517224,144.98,144.97,21.37902231]
[1720968671380,0.2,144.99,144.97,111.90012766]
[1720968671674,0.2,144.99,144.98,67.45]
[1720968671841,6.6187,145.08,144.98,93.7233]
[1720968672041,6.6187,145.08,144.99,20.0]
[1720968672255,0.2,145.09,145.0,45.0]
[1720968672457,0.2,145.09,145.02,22.45]
[1720968672662,0.2,145.09,145.03,46.37832773]
[1720968672971,0.2,145.09,145.03,45.0]
[1720968673159,0.2,145.09,145.04,1.21045176]
[1720968674375,0.2,145.09,145.04,23.68766273]
[1720968675365,0.2,145.09,145.05,45.0]
[1720968675673,0.2,145.09,145.06,1.37831059]
[1720968675852,0.2,145.09,145.05,45.0]
[1720968676468,0.2,145.09,145.06,20.0]
[1720968676770,0.2,145.09,145.07,68.82803546]
[1720968676968,0.2,145.09,145.08,20.0]
[1720968677186,0.88927489,145.09,145.02,28.7233]
[1720968677482,0.88927489,145.09,145.03,21.37831447]
[1720968678549,0.88927489,145.09,145.08,22.45]
[1720968678749,0.88927489,145.09,145.05,28.7233]
[1720968678948,0.88927489,145.09,145.06,20.43747262]
[1720968679150,0.88927489,145.09,145.07,45.0]
[1720968679356,0.88927489,145.09,145.08,21.37787012]
[1720968679553,1.58078719,145.19,145.08,105.47806823]
[1720968679554,0.2,145.19,145.08,105.47806823]
[1720968679761,0.2,145.19,145.11,22.45]
[1720968679964,0.2,145.19,145.12,20.0]
[1720968680170,0.2,145.19,145.12,65.59128944]
[1720968680461,0.2,145.19,145.12,65.0]
[1720968680870,0.2,145.19,145.13,1.3752828]
[1720968681065,0.2,145.19,145.12,65.0]
[1720968681864,0.2,145.19,145.13,1.37738032]
[1720968682255,0.2,145.19,145.15,22.45]
[1720968682466,0.2,145.19,145.16,66.37717222]
[1720968682872,0.2,145.19,145.16,65.0]
[1720968683773,0.2,145.19,145.18,22.45]
[1720968683959,0.2,145.19,145.18,20.0]
[1720968684159,0.2,145.19,145.1,22.012]
[1720968684374,0.2,145.19,145.11,43.82619637]
[1720968684587,0.2,145.19,145.11,23.82619637]
[1720968684795,0.2,145.19,145.14,22.45]
[1720968685251,0.2,145.19,145.18,22.45]
[1720968685451,0.04096541,145.22,145.19,1.37590119]
[1720968685672,0.04096541,145.22,145.18,44.9]
[1720968685859,0.04096541,145.22,145.2,22.45]
[1720968686068,0.04096541,145.22,145.21,65.0]
[1720968688772,0.04096541,145.22,145.21,20.0]
[1720968688963,0.04096541,145.22,145.16,20.0]
[1720968689474,0.04096541,145.22,145.18,2.761145]
[1720968689873,0.04096541,145.22,145.16,20.0]
[1720968690179,0.04096541,145.22,145.17,45.0]
[1720968690405,0.04096541,145.22,145.18,20.0]
[1720968690563,0.04096541,145.22,145.19,45.0]
[1720968690893,0.04096541,145.22,145.2,20.0]
[1720968691269,0.04096541,145.22,145.17,1.3770149]
[1720968691589,0.04096541,145.22,145.16,22.761263]
[1720968691590,0.04096541,145.22,145.18,1.37692005]
[1720968691997,0.04096541,145.22,145.18,26.50692005]
[1720968692289,0.04096541,145.22,145.19,20.0]
[1720968692679,0.04096541,145.22,145.2,45.0]
[1720968692871,0.04096541,145.22,145.21,20.0]
[1720968693072,0.04096541,145.22,145.21,65.0]
[1720968693375,0.04096541,145.22,145.16,2.761263]
[1720968693991,0.04096541,145.22,145.17,2.28794891]
[1720968694198,0.8517224,145.27,145.21,25.13]
[1720968694578,0.8517224,145.27,145.22,46.37642629]
[1720968694898,0.8517224,145.27,145.23,20.0]
[1720968695100,0.8517224,145.27,145.24,46.37629852]
[1720968695397,0.8517224,145.27,145.25,20.0]
[1720968695704,0.8517224,145.27,145.26,45.0]
[1720968695872,0.8517224,145.27,145.26,20.0]
[1720968696479,0.8517224,145.27,145.25,20.0]
[1720968696901,0.8517224,145.27,145.24,20.0]
[1720968697105,0.8517224,145.27,145.25,1.37618661]
[1720968697698,0.8517224,145.27,145.24,20.0]
[1720968698721,0.8517224,145.27,145.25,45.0]
[1720968698883,0.8517224,145.27,145.26,20.0]
[1720968699084,0.8517224,145.27,145.26,66.37338749]
[1720968699313,0.8517224,145.27,145.26,65.0]
[1720968699981,0.8517224,145.27,145.26,20.0]
[1720968700183,0.8517224,145.27,145.25,20.0]
[1720968700393,0.8517224,145.27,145.24,20.0]
[1720968701088,0.8517224,145.27,145.2,6.3953]
[1720968701292,0.8517224,145.27,145.18,40.2893]
[1720968701492,0.8517224,145.27,145.17,6.76957475]
[1720968701695,0.8517224,145.27,145.16,2.761263]
[1720968702502,1.38078719,145.26,145.16,2.761263]
[1720968702801,1.38078719,145.26,145.17,0.99964709]
[1720968703704,1.38078719,145.25,145.17,0.99964709]
[1720968703906,1.38078719,145.26,145.17,1.37710317]
[1720968704087,1.38078719,145.26,145.13,1.37710317]
[1720968704294,1.38078719,145.26,145.13,4.13903317]
[1720968704487,1.38078719,145.26,145.13,2.76193]
[1720968704704,46.38078719,145.26,145.13,2.76193]
[1720968705098,46.38078719,145.26,145.09,25.13]
[1720968705405,46.38078719,145.26,145.09,45.91]
[1720968705718,46.38078719,145.26,145.1,1.3774844]
[1720968706012,46.38078719,145.26,145.1,2.28905267]
[1720968706183,46.38078719,145.26,145.11,1.37755131]
[1720968706594,46.38078719,145.26,145.1,22.28905267]
[1720968706884,25.13,145.24,145.11,1.37749509]
[1720968707202,46.38078719,145.23,145.06,6.76957475]
[1720968707388,56.38078719,145.23,145.06,6.76957475]
[1720968707591,56.38078719,145.23,145.03,30.61883205]
[1720968707592,25.13,145.21,145.07,1.3780586]
[1720968707795,1.38078719,145.2,145.07,1.3780586]
[1720968708301,1.38078719,145.2,145.07,1.41952799]
[1720968708626,1.38078719,145.2,145.07,1.3780586]
[1720968708913,1.38078719,145.2,145.06,46.37785411]
[1720968709113,1.38078719,145.2,145.06,45.0]
[1720968709644,1.38078719,145.2,145.05,45.91]
[1720968709794,1.38078719,145.2,145.08,45.91]
[1720968709991,1.38078719,145.21,145.09,21.3774981]
[1720968710222,1.38078719,145.2,145.09,21.3774981]
[1720968710604,1.38078719,145.2,145.09,1.3774981]
[1720968710922,1.38078719,145.21,145.09,1.3774981]
[1720968711089,1.38078719,145.2,145.09,21.3774981]
[1720968711290,1.38078719,145.2,145.1,45.0]
[1720968711507,6.51,145.22,145.11,46.50753454]
[1720968711708,6.51,145.22,145.12,48.66601647]
[1720968712010,6.51,145.22,145.14,25.13]
[1720968712213,6.51,145.22,145.15,66.37699461]
[1720968712796,6.2355,145.26,145.15,66.37699461]
[1720968713204,0.8517224,145.27,145.17,25.13]
[1720968713420,0.8517224,145.27,145.2,25.13]
[1720968713620,0.8517224,145.27,145.21,66.37660122]
[1720968714127,0.8517224,145.27,145.21,20.0]
[1720968714433,0.8517224,145.27,145.22,1.24868607]
[1720968715223,0.8517224,145.27,145.19,20.0]
[1720968715402,0.8517224,145.27,145.2,1.37683842]
[1720968715830,7.61628719,145.26,145.19,1.37711215]
[1720968716125,7.61628719,145.26,145.15,1.37700447]
[1720968717212,7.61628719,145.26,145.16,1.37731333]
[1720968718120,7.61628719,145.26,145.17,1.3771265]
[1720968718325,7.61628719,145.26,145.14,25.13]
[1720968718525,7.61628719,145.26,145.15,21.37710192]
[1720968719727,6.2355,145.26,145.15,21.37710192]
[1720968719912,1.38078719,145.25,145.15,21.37710192]
[1720968720111,1.38078719,145.25,145.16,45.0]
[1720968720309,6.2355,145.26,145.17,20.0]
[1720968720512,6.2355,145.26,145.18,45.0]
[1720968720726,6.2355,145.26,145.19,20.52020674]
[1720968720912,6.2355,145.26,145.19,20.0]
[1720968722236,6.2355,145.26,145.15,20.0]
[1720968722436,6.2355,145.26,145.16,45.0]
[1720968722747,6.2355,145.26,145.17,20.0]
[1720968723047,6.2355,145.26,145.18,46.00151562]
[1720968723341,6.2355,145.26,145.19,20.0]
[1720968723755,1.38078719,145.25,145.16,2.28810652]
[1720968724050,1.38078719,145.25,145.17,1.37704901]
[1720968724210,1.38078719,145.25,145.15,20.0]
[1720968724617,1.38078719,145.25,145.16,1.37714177]
[1720968724818,6.2355,145.26,145.16,1.37714177]
[1720968725251,6.2355,145.26,145.15,20.0]
[1720968726049,7.61628719,145.26,145.16,45.0]
[1720968726236,7.61628719,145.26,145.17,20.0]
[1720968726443,7.61628719,145.26,145.18,1.37707499]
[1720968726741,6.2355,145.26,145.15,1.37720702]
[1720968726947,6.2355,145.26,145.16,1.37697171]
[1720968727322,1.38078719,145.25,145.16,1.37697171]
[1720968727633,6.2355,145.26,145.16,1.37697171]
[1720968727839,6.2355,145.26,145.15,42.15689332]
[1720968728016,6.2355,145.26,145.16,45.0]
[1720968728216,6.2355,145.26,145.17,20.0]
[1720968728449,6.2355,145.26,145.18,45.0]
[1720968728633,6.2355,145.26,145.19,21.37677354]
[1720968728962,6.2355,145.26,145.2,45.0]
[1720968729262,6.2355,145.26,145.21,21.37680246]
[1720968729424,6.2355,145.26,145.21,1.37680246]
[1720968730225,6.2355,145.26,145.21,21.37680246]
[1720968731633,0.8517224,145.27,145.21,21.37680246]
[1720968731956,0.8517224,145.27,145.22,45.0]
[1720968732181,0.8517224,145.27,145.23,21.37642683]
[1720968732338,0.8517224,145.27,145.24,1.37643712]
[1720968733461,0.8517224,145.27,145.25,1.37652488]
[1720968733649,0.8517224,145.27,145.18,1.37664623]
[1720968734268,0.8517224,145.27,145.19,1.37664561]
[1720968735235,0.8517224,145.27,145.18,1.37672735]
[1720968735764,0.8517224,145.27,145.19,1.37685438]
[1720968736368,0.8517224,145.27,145.16,1.37698827]
[1720968737084,0.8517224,145.27,145.15,2.28826416]
[1720968737085,16.2818,145.26,145.15,2.28826416]
[1720968737260,1.38078719,145.25,145.15,2.28826416]
[1720968737460,6.2919,145.24,145.16,1.37710812]
[1720968737651,1.38078719,145.23,145.16,1.37710812]
[1720968737851,1.38078719,145.23,145.11,50.29432094]
[1720968738056,1.38078719,145.23,145.11,41.7544]
[1720968738366,1.38078719,145.23,145.12,1.37734224]
[1720968738769,1.38078719,145.23,145.12,1.37740779]
[1720968739846,1.38078719,145.23,145.12,21.37740779]
[1720968741840,1.38078719,145.23,145.1,7.17592529]
[1720968742044,1.38078719,145.23,145.11,44.5]
[1720968742785,1.38078719,145.23,145.12,0.47503774]
[1720968742967,1.38078719,145.23,145.12,20.47503774]
[1720968743160,1.38078719,145.23,145.12,21.37724497]
[1720968743487,6.2919,145.24,145.13,25.13]
[1720968743683,6.2919,145.24,145.14,42.15708003]
[1720968743894,6.2919,145.24,145.15,1.37693821]
[1720968744066,6.2919,145.24,145.15,8.7622074]
[1720968744265,6.2919,145.24,145.16,65.0]
[1720968745066,1.38078719,145.23,145.17,1.37714106]
[1720968745272,1.38078719,145.23,145.16,20.0]
[1720968745688,1.38078719,145.23,145.12,21.37743619]
[1720968746186,1.38078719,145.23,145.12,1.37743619]
[1720968746360,6.3643,145.21,145.11,7.38526919]
[1720968746566,6.3643,145.21,145.07,25.13]
[1720968746567,46.38078719,145.2,145.07,25.13]
[1720968746767,1.38078719,145.2,145.08,1.37789042]
[1720968747085,46.38078719,145.2,145.05,14.55966368]
[1720968747491,46.38078719,145.2,145.06,1.37802497]
[1720968747878,46.38078719,145.2,145.05,14.55966368]
[1720968748190,15.387,145.18,145.06,1.37819294]
[1720968748488,1.38078719,145.17,145.05,7.17439449]
[1720968748988,46.38078719,145.17,145.06,1.37824448]
[1720968750384,46.38078719,145.17,145.06,21.37824448]
[1720968751266,46.38078719,145.17,145.06,20.0]
[1720968751797,6.1245,145.16,145.06,20.0]
[1720968751995,1.38078719,145.15,145.06,20.0]
[1720968752166,1.38078719,145.14,145.06,20.0]
[1720968752568,1.38078719,145.14,145.05,7.17439449]
[1720968752770,1.38078719,145.14,145.06,1.37860491]
[1720968753480,1.38078719,145.14,145.05,7.17439449]
[1720968753781,1.38078719,145.13,145.05,7.17439449]
[1720968753982,1.38078719,145.15,145.05,7.17439449]
[1720968754290,1.38078719,145.14,145.05,7.17439449]
[1720968754481,1.38078719,145.14,145.06,20.0]
[1720968755481,15.6598,145.13,145.05,7.17439449]
[1720968755686,1.38078719,145.12,145.05,7.17439449]
[1720968755913,6.1245,145.11,145.05,7.17439449]
[1720968756205,1.38078719,145.1,145.05,7.17439449]
[1720968756708,1.38078719,145.1,144.97,25.13]
[1720968757071,1.38078719,145.1,144.98,1.37871167]
[1720968757788,1.38078719,145.1,144.98,46.37871167]
[1720968758290,1.38078719,145.1,144.99,1.37882487]
[1720968758501,46.38078719,145.1,144.99,1.37882487]
[1720968758707,46.38078719,145.1,144.95,1.37889768]
[1720968759003,46.38078719,145.1,144.96,1.37893235]
[1720968759723,21.7843,145.09,144.94,20.59673333]
[1720968760009,1.38078719,145.08,144.94,14.53993333]
[1720968760314,1.38078719,145.07,144.94,14.53993333]
[1720968761197,1.38078719,145.07,144.96,25.13]
[1720968761478,1.38078719,145.06,144.97,1.37887332]
[1720968762098,1.38078719,145.06,144.96,25.13]
[1720968762303,1.38078719,145.06,144.97,20.0]
[1720968762474,21.7843,145.09,144.97,20.0]
[1720968762475,1.38078719,145.08,144.97,20.0]
[1720968762679,21.7843,145.09,144.99,25.13]
[1720968762907,21.7843,145.09,145.0,65.0]
[1720968763080,6.1245,145.09,145.0,66.37847129]
[1720968765028,6.1245,145.09,145.01,1.37856914]
[1720968765197,6.1245,145.09,145.0,65.0]
[1720968765397,6.1245,145.09,145.01,1.35869139]
[1720968765715,1.38078719,145.08,145.0,65.0]
[1720968765889,6.1245,145.09,145.01,1.37848997]
[1720968766110,6.1245,145.09,145.02,1.37855546]
[1720968766317,1.38078719,145.08,145.0,20.0]
[1720968766513,6.1245,145.09,145.01,46.37867086]
[1720968766717,21.7883,145.13,145.03,25.13]
[1720968766946,21.7883,145.13,145.04,66.37810854]
[1720968767248,21.7883,145.13,145.05,1.37810854]
[1720968768437,1.38078719,145.12,145.04,65.0]
[1720968768637,21.7883,145.13,145.05,1.37828107]
[1720968770342,1.38078719,145.12,145.04,65.0]
[1720968771250,21.7883,145.13,145.05,1.37827351]
[1720968771743,21.7883,145.13,145.04,65.0]
[1720968773219,1.38078719,145.12,145.05,1.37823579]
[1720968773848,1.38078719,145.12,145.04,20.0]
[1720968774163,1.38078719,145.12,145.05,1.37841217]
[1720968774364,1.38078719,145.12,145.04,20.0]
[1720968774566,1.38078719,145.12,145.02,20.0]
[1720968774736,1.38078719,145.12,145.02,1.37850976]
[1720968776355,1.38078719,145.12,145.02,21.37850976]
[1720968776535,1.38078719,145.12,145.03,20.0]
[1720968776732,1.38078719,145.12,145.01,20.0]
[1720968776938,1.38078719,145.12,145.02,1.37859477]
[1720968777143,46.38078719,145.12,145.02,1.37859477]
[1720968777549,16.6303,145.1,145.02,1.37859477]
[1720968777756,1.38078719,145.09,144.99,1.37879649]
[1720968778567,46.38078719,145.09,145.0,1.37886911]
[1720968778862,6.1127,145.08,145.0,1.37886911]
[1720968779067,1.38078719,145.07,145.0,1.37886911]
[1720968779442,1.38078719,145.07,144.98,7.17160835]
[1720968779935,1.38078719,145.07,144.99,20.0]
[1720968780560,1.38078719,145.07,145.0,1.37892869]
[1720968780768,7.49348719,145.08,145.0,1.37892869]
[1720968781064,1.38078719,145.07,145.0,1.37892869]
[1720968781462,1.38078719,145.07,144.99,20.0]
[1720968781667,1.38078719,145.07,145.0,1.3787973]
[1720968781847,1.38078719,145.07,144.99,20.0]
[1720968782180,1.38078719,145.07,145.0,1.37893285]
[1720968782352,7.49348719,145.08,145.0,1.37893285]
[1720968782751,6.1127,145.08,145.0,1.37893285]
[1720968783071,7.49348719,145.08,145.0,1.3786889]
[1720968783440,7.49348719,145.08,145.0,46.3786889]
[1720968783662,7.49348719,145.08,145.01,20.0]
[1720968784052,6.1127,145.08,145.01,20.0]
[1720968784256,6.1127,145.08,145.02,1.37868983]
[1720968784657,1.38078719,145.07,145.02,1.37869107]
[1720968784880,1.38078719,145.07,144.99,20.0]
[1720968785179,1.38078719,145.07,144.97,25.13]
[1720968785351,1.38078719,145.07,144.94,49.00946919]
[1720968785755,1.38078719,145.07,144.95,1.37900469]
[1720968786157,15.6289,145.06,144.95,1.37900469]
[1720968786356,1.38078719,145.05,144.95,1.37900469]
[1720968786785,15.6289,145.06,144.95,1.37900469]
[1720968786981,1.38078719,145.05,144.95,1.37900469]
[1720968787277,1.38078719,145.05,144.94,39.68539308]
[1720968787584,6.1671,145.04,144.94,7.17012389]
[1720968787762,1.38078719,145.03,144.92,25.13]
[1720968788168,1.38078719,145.03,144.93,1.3793782]
[1720968788768,15.6289,145.02,144.93,1.37942457]
[1720968788963,6.1671,145.0,144.91,0.2]
[1720968789201,1.38078719,144.99,144.91,1.57952723]
[1720968789690,1.38078719,144.99,144.91,0.2]
[1720968790001,1.38078719,144.98,144.91,20.2]
[1720968790213,1.38078719,144.98,144.91,0.2]
[1720968790373,15.6289,144.97,144.91,0.2]
[1720968790579,1.38078719,144.96,144.91,0.2]
[1720968791580,15.6289,144.97,144.91,0.2]
[1720968791904,15.6289,144.97,144.91,1.57942801]
[1720968792309,15.6289,144.97,144.91,0.2]
[1720968792604,15.6289,144.97,144.91,20.2]
[1720968792780,15.6289,144.97,144.92,45.0]
[1720968792979,15.6289,144.97,144.93,20.0]
[1720968793805,15.6289,144.97,144.94,1.37956345]
[1720968794002,15.6289,144.97,144.91,0.2]
[1720968794304,15.6289,144.97,144.91,1.5796707]
[1720968794902,15.6289,144.97,144.91,0.2]
[1720968795107,15.6289,144.97,144.91,1.57964488]
[1720968795269,15.6289,144.97,144.91,21.57964488]
[1720968796609,1.38078719,144.96,144.91,1.57964488]
[1720968797110,15.6289,144.97,144.92,1.37985993]
[1720968797681,15.6289,144.97,144.91,0.2]
[1720968798095,15.6289,144.97,144.91,1.24526921]